{"text_format":"1","workbook":"xlsx","n_sheets":2,"sheets":["keab","arhkeab"],"not_rendered":{"charts":0,"images":0,"macros":1,"external_links":7,"defined_names":38,"comments":0,"pivot_tables":0},"unopened":[],"bounds":{"document_bytes":16777216,"sheet_cells":100000,"rows_first":2000,"rows_last":500,"rows_between":2000,"halvings":0,"cell_chars":16384,"cell_head_chars":4096},"cells_cut":0,"cells_raw":0,"read":"whole","date_system":"1900"}

{"sheet":"keab","index":0,"n_rows":205,"n_cols":41,"rows_kept":205,"cut":false,"hidden":false,"merged":[[2,38,3,38],[2,39,3,39],[2,40,3,40],[2,36,3,36],[1,21,1,22],[1,23,1,25],[1,37,1,40],[2,37,3,37],[2,1,3,1],[2,2,3,2],[2,3,3,3],[2,4,3,4],[1,16,1,17],[1,1,1,15]]}
[null,2,3,4,5,6,7,8,9,10,11,12,13,14,15,16,17,18,19,20,21,22,23,24,25,26,27,28,29,30,31,32,33,34,35,36,37,38,39,40,41]
[null,"غياب شهر",null,null,null,null,null,null,null,null,null,null,null,null,null,null,{"$f":"mount(T2)","v":"مارس"},null,")",3,"(","لسنة",null,2020]
[null,"الرقم","اسم المعلم","الصفة","الفترة",{"$f":"IF(F4=\"\",\"\",INDEX({\"السبت\";\"الأحد\";\"الإثنين\";\"الثلاثاء\";\"الأربعاء\";\"الخميس\";\"الجمعة\"},WEEKDAY(F4,16)))","v":"الأحد"},{"$f":"IF(G4=\"\",\"\",INDEX({\"السبت\";\"الأحد\";\"الإثنين\";\"الثلاثاء\";\"الأربعاء\";\"الخميس\";\"الجمعة\"},WEEKDAY(G4,16)))","v":"الإثنين"},{"$f":"IF(H4=\"\",\"\",INDEX({\"السبت\";\"الأحد\";\"الإثنين\";\"الثلاثاء\";\"الأربعاء\";\"الخميس\";\"الجمعة\"},WEEKDAY(H4,16)))","v":"الثلاثاء"},{"$f":"IF(I4=\"\",\"\",INDEX({\"السبت\";\"الأحد\";\"الإثنين\";\"الثلاثاء\";\"الأربعاء\";\"الخميس\";\"الجمعة\"},WEEKDAY(I4,16)))","v":"الأربعاء"},{"$f":"IF(J4=\"\",\"\",INDEX({\"السبت\";\"الأحد\";\"الإثنين\";\"الثلاثاء\";\"الأربعاء\";\"الخميس\";\"الجمعة\"},WEEKDAY(J4,16)))","v":"الخميس"},{"$f":"IF(K4=\"\",\"\",INDEX({\"السبت\";\"الأحد\";\"الإثنين\";\"الثلاثاء\";\"الأربعاء\";\"الخميس\";\"الجمعة\"},WEEKDAY(K4,16)))","v":"الجمعة"},{"$f":"IF(L4=\"\",\"\",INDEX({\"السبت\";\"الأحد\";\"الإثنين\";\"الثلاثاء\";\"الأربعاء\";\"الخميس\";\"الجمعة\"},WEEKDAY(L4,16)))","v":"السبت"},{"$f":"IF(M4=\"\",\"\",INDEX({\"السبت\";\"الأحد\";\"الإثنين\";\"الثلاثاء\";\"الأربعاء\";\"الخميس\";\"الجمعة\"},WEEKDAY(M4,16)))","v":"الأحد"},{"$f":"IF(N4=\"\",\"\",INDEX({\"السبت\";\"الأحد\";\"الإثنين\";\"الثلاثاء\";\"الأربعاء\";\"الخميس\";\"الجمعة\"},WEEKDAY(N4,16)))","v":"الإثنين"},{"$f":"IF(O4=\"\",\"\",INDEX({\"السبت\";\"الأحد\";\"الإثنين\";\"الثلاثاء\";\"الأربعاء\";\"الخميس\";\"الجمعة\"},WEEKDAY(O4,16)))","v":"الثلاثاء"},{"$f":"IF(P4=\"\",\"\",INDEX({\"السبت\";\"الأحد\";\"الإثنين\";\"الثلاثاء\";\"الأربعاء\";\"الخميس\";\"الجمعة\"},WEEKDAY(P4,16)))","v":"الأربعاء"},{"$f":"IF(Q4=\"\",\"\",INDEX({\"السبت\";\"الأحد\";\"الإثنين\";\"الثلاثاء\";\"الأربعاء\";\"الخميس\";\"الجمعة\"},WEEKDAY(Q4,16)))","v":"الخميس"},{"$f":"IF(R4=\"\",\"\",INDEX({\"السبت\";\"الأحد\";\"الإثنين\";\"الثلاثاء\";\"الأربعاء\";\"الخميس\";\"الجمعة\"},WEEKDAY(R4,16)))","v":"الجمعة"},{"$f":"IF(S4=\"\",\"\",INDEX({\"السبت\";\"الأحد\";\"الإثنين\";\"الثلاثاء\";\"الأربعاء\";\"الخميس\";\"الجمعة\"},WEEKDAY(S4,16)))","v":"السبت"},{"$f":"IF(T4=\"\",\"\",INDEX({\"السبت\";\"الأحد\";\"الإثنين\";\"الثلاثاء\";\"الأربعاء\";\"الخميس\";\"الجمعة\"},WEEKDAY(T4,16)))","v":"الأحد"},{"$f":"IF(U4=\"\",\"\",INDEX({\"السبت\";\"الأحد\";\"الإثنين\";\"الثلاثاء\";\"الأربعاء\";\"الخميس\";\"الجمعة\"},WEEKDAY(U4,16)))","v":"الإثنين"},{"$f":"IF(V4=\"\",\"\",INDEX({\"السبت\";\"الأحد\";\"الإثنين\";\"الثلاثاء\";\"الأربعاء\";\"الخميس\";\"الجمعة\"},WEEKDAY(V4,16)))","v":"الثلاثاء"},{"$f":"IF(W4=\"\",\"\",INDEX({\"السبت\";\"الأحد\";\"الإثنين\";\"الثلاثاء\";\"الأربعاء\";\"الخميس\";\"الجمعة\"},WEEKDAY(W4,16)))","v":"الأربعاء"},{"$f":"IF(X4=\"\",\"\",INDEX({\"السبت\";\"الأحد\";\"الإثنين\";\"الثلاثاء\";\"الأربعاء\";\"الخميس\";\"الجمعة\"},WEEKDAY(X4,16)))","v":"الخميس"},{"$f":"IF(Y4=\"\",\"\",INDEX({\"السبت\";\"الأحد\";\"الإثنين\";\"الثلاثاء\";\"الأربعاء\";\"الخميس\";\"الجمعة\"},WEEKDAY(Y4,16)))","v":"الجمعة"},{"$f":"IF(Z4=\"\",\"\",INDEX({\"السبت\";\"الأحد\";\"الإثنين\";\"الثلاثاء\";\"الأربعاء\";\"الخميس\";\"الجمعة\"},WEEKDAY(Z4,16)))","v":"السبت"},{"$f":"IF(AA4=\"\",\"\",INDEX({\"السبت\";\"الأحد\";\"الإثنين\";\"الثلاثاء\";\"الأربعاء\";\"الخميس\";\"الجمعة\"},WEEKDAY(AA4,16)))","v":"الأحد"},{"$f":"IF(AB4=\"\",\"\",INDEX({\"السبت\";\"الأحد\";\"الإثنين\";\"الثلاثاء\";\"الأربعاء\";\"الخميس\";\"الجمعة\"},WEEKDAY(AB4,16)))","v":"الإثنين"},{"$f":"IF(AC4=\"\",\"\",INDEX({\"السبت\";\"الأحد\";\"الإثنين\";\"الثلاثاء\";\"الأربعاء\";\"الخميس\";\"الجمعة\"},WEEKDAY(AC4,16)))","v":"الثلاثاء"},{"$f":"IF(AD4=\"\",\"\",INDEX({\"السبت\";\"الأحد\";\"الإثنين\";\"الثلاثاء\";\"الأربعاء\";\"الخميس\";\"الجمعة\"},WEEKDAY(AD4,16)))","v":"الأربعاء"},{"$f":"IF(AE4=\"\",\"\",INDEX({\"السبت\";\"الأحد\";\"الإثنين\";\"الثلاثاء\";\"الأربعاء\";\"الخميس\";\"الجمعة\"},WEEKDAY(AE4,16)))","v":"الخميس"},{"$f":"IF(AF4=\"\",\"\",INDEX({\"السبت\";\"الأحد\";\"الإثنين\";\"الثلاثاء\";\"الأربعاء\";\"الخميس\";\"الجمعة\"},WEEKDAY(AF4,16)))","v":"الجمعة"},{"$f":"IF(AG4=\"\",\"\",INDEX({\"السبت\";\"الأحد\";\"الإثنين\";\"الثلاثاء\";\"الأربعاء\";\"الخميس\";\"الجمعة\"},WEEKDAY(AG4,16)))","v":"السبت"},{"$f":"IF(AH4=\"\",\"\",INDEX({\"السبت\";\"الأحد\";\"الإثنين\";\"الثلاثاء\";\"الأربعاء\";\"الخميس\";\"الجمعة\"},WEEKDAY(AH4,16)))","v":"الأحد"},{"$f":"IF(AI4=\"\",\"\",INDEX({\"السبت\";\"الأحد\";\"الإثنين\";\"الثلاثاء\";\"الأربعاء\";\"الخميس\";\"الجمعة\"},WEEKDAY(AI4,16)))","v":"الإثنين"},{"$f":"IF(AJ4=\"\",\"\",INDEX({\"السبت\";\"الأحد\";\"الإثنين\";\"الثلاثاء\";\"الأربعاء\";\"الخميس\";\"الجمعة\"},WEEKDAY(AJ4,16)))","v":"الثلاثاء"},"أيام الغياب","أيام الغياب بالحروف","عدد أيام الغياب","شهر الغياب","السنة"]
[null,null,null,null,null,{"$f":"IF(COLUMNS($E$1:E1)>DAY(DATE($X$2,INDEX(ROW($A$1:$A$11),MATCH($Q$2,{\"يناير\";\"فبراير\";\"مارس\";\"أبريل\";\"مايو\";\"يونيو\";\"يوليو\";\"أغسطس\";\"سبتمبر\";\"أكتوبر\";\"نوفمبر\";\"ديسمبر\"},0)),COLUMNS($E$1:E1))),\"\",DATE($X$2,INDEX(ROW($A$1:$A$11),MATCH($Q$2,{\"يناير\";\"فبراير\";\"مارس\";\"أبريل\";\"مايو\";\"يونيو\";\"يوليو\";\"أغسطس\";\"سبتمبر\";\"أكتوبر\";\"نوفمبر\";\"ديسمبر\"},0)),COLUMNS($E$1:E1)))","v":"2020-03-01"},{"$f":"IF(COLUMNS($E$1:F1)>DAY(DATE($X$2,INDEX(ROW($A$1:$A$11),MATCH($Q$2,{\"يناير\";\"فبراير\";\"مارس\";\"أبريل\";\"مايو\";\"يونيو\";\"يوليو\";\"أغسطس\";\"سبتمبر\";\"أكتوبر\";\"نوفمبر\";\"ديسمبر\"},0)),COLUMNS($E$1:F1))),\"\",DATE($X$2,INDEX(ROW($A$1:$A$11),MATCH($Q$2,{\"يناير\";\"فبراير\";\"مارس\";\"أبريل\";\"مايو\";\"يونيو\";\"يوليو\";\"أغسطس\";\"سبتمبر\";\"أكتوبر\";\"نوفمبر\";\"ديسمبر\"},0)),COLUMNS($E$1:F1)))","v":"2020-03-02"},{"$f":"IF(COLUMNS($E$1:G1)>DAY(DATE($X$2,INDEX(ROW($A$1:$A$11),MATCH($Q$2,{\"يناير\";\"فبراير\";\"مارس\";\"أبريل\";\"مايو\";\"يونيو\";\"يوليو\";\"أغسطس\";\"سبتمبر\";\"أكتوبر\";\"نوفمبر\";\"ديسمبر\"},0)),COLUMNS($E$1:G1))),\"\",DATE($X$2,INDEX(ROW($A$1:$A$11),MATCH($Q$2,{\"يناير\";\"فبراير\";\"مارس\";\"أبريل\";\"مايو\";\"يونيو\";\"يوليو\";\"أغسطس\";\"سبتمبر\";\"أكتوبر\";\"نوفمبر\";\"ديسمبر\"},0)),COLUMNS($E$1:G1)))","v":"2020-03-03"},{"$f":"IF(COLUMNS($E$1:H1)>DAY(DATE($X$2,INDEX(ROW($A$1:$A$11),MATCH($Q$2,{\"يناير\";\"فبراير\";\"مارس\";\"أبريل\";\"مايو\";\"يونيو\";\"يوليو\";\"أغسطس\";\"سبتمبر\";\"أكتوبر\";\"نوفمبر\";\"ديسمبر\"},0)),COLUMNS($E$1:H1))),\"\",DATE($X$2,INDEX(ROW($A$1:$A$11),MATCH($Q$2,{\"يناير\";\"فبراير\";\"مارس\";\"أبريل\";\"مايو\";\"يونيو\";\"يوليو\";\"أغسطس\";\"سبتمبر\";\"أكتوبر\";\"نوفمبر\";\"ديسمبر\"},0)),COLUMNS($E$1:H1)))","v":"2020-03-04"},{"$f":"IF(COLUMNS($E$1:I1)>DAY(DATE($X$2,INDEX(ROW($A$1:$A$11),MATCH($Q$2,{\"يناير\";\"فبراير\";\"مارس\";\"أبريل\";\"مايو\";\"يونيو\";\"يوليو\";\"أغسطس\";\"سبتمبر\";\"أكتوبر\";\"نوفمبر\";\"ديسمبر\"},0)),COLUMNS($E$1:I1))),\"\",DATE($X$2,INDEX(ROW($A$1:$A$11),MATCH($Q$2,{\"يناير\";\"فبراير\";\"مارس\";\"أبريل\";\"مايو\";\"يونيو\";\"يوليو\";\"أغسطس\";\"سبتمبر\";\"أكتوبر\";\"نوفمبر\";\"ديسمبر\"},0)),COLUMNS($E$1:I1)))","v":"2020-03-05"},{"$f":"IF(COLUMNS($E$1:J1)>DAY(DATE($X$2,INDEX(ROW($A$1:$A$11),MATCH($Q$2,{\"يناير\";\"فبراير\";\"مارس\";\"أبريل\";\"مايو\";\"يونيو\";\"يوليو\";\"أغسطس\";\"سبتمبر\";\"أكتوبر\";\"نوفمبر\";\"ديسمبر\"},0)),COLUMNS($E$1:J1))),\"\",DATE($X$2,INDEX(ROW($A$1:$A$11),MATCH($Q$2,{\"يناير\";\"فبراير\";\"مارس\";\"أبريل\";\"مايو\";\"يونيو\";\"يوليو\";\"أغسطس\";\"سبتمبر\";\"أكتوبر\";\"نوفمبر\";\"ديسمبر\"},0)),COLUMNS($E$1:J1)))","v":"2020-03-06"},{"$f":"IF(COLUMNS($E$1:K1)>DAY(DATE($X$2,INDEX(ROW($A$1:$A$11),MATCH($Q$2,{\"يناير\";\"فبراير\";\"مارس\";\"أبريل\";\"مايو\";\"يونيو\";\"يوليو\";\"أغسطس\";\"سبتمبر\";\"أكتوبر\";\"نوفمبر\";\"ديسمبر\"},0)),COLUMNS($E$1:K1))),\"\",DATE($X$2,INDEX(ROW($A$1:$A$11),MATCH($Q$2,{\"يناير\";\"فبراير\";\"مارس\";\"أبريل\";\"مايو\";\"يونيو\";\"يوليو\";\"أغسطس\";\"سبتمبر\";\"أكتوبر\";\"نوفمبر\";\"ديسمبر\"},0)),COLUMNS($E$1:K1)))","v":"2020-03-07"},{"$f":"IF(COLUMNS($E$1:L1)>DAY(DATE($X$2,INDEX(ROW($A$1:$A$11),MATCH($Q$2,{\"يناير\";\"فبراير\";\"مارس\";\"أبريل\";\"مايو\";\"يونيو\";\"يوليو\";\"أغسطس\";\"سبتمبر\";\"أكتوبر\";\"نوفمبر\";\"ديسمبر\"},0)),COLUMNS($E$1:L1))),\"\",DATE($X$2,INDEX(ROW($A$1:$A$11),MATCH($Q$2,{\"يناير\";\"فبراير\";\"مارس\";\"أبريل\";\"مايو\";\"يونيو\";\"يوليو\";\"أغسطس\";\"سبتمبر\";\"أكتوبر\";\"نوفمبر\";\"ديسمبر\"},0)),COLUMNS($E$1:L1)))","v":"2020-03-08"},{"$f":"IF(COLUMNS($E$1:M1)>DAY(DATE($X$2,INDEX(ROW($A$1:$A$11),MATCH($Q$2,{\"يناير\";\"فبراير\";\"مارس\";\"أبريل\";\"مايو\";\"يونيو\";\"يوليو\";\"أغسطس\";\"سبتمبر\";\"أكتوبر\";\"نوفمبر\";\"ديسمبر\"},0)),COLUMNS($E$1:M1))),\"\",DATE($X$2,INDEX(ROW($A$1:$A$11),MATCH($Q$2,{\"يناير\";\"فبراير\";\"مارس\";\"أبريل\";\"مايو\";\"يونيو\";\"يوليو\";\"أغسطس\";\"سبتمبر\";\"أكتوبر\";\"نوفمبر\";\"ديسمبر\"},0)),COLUMNS($E$1:M1)))","v":"2020-03-09"},{"$f":"IF(COLUMNS($E$1:N1)>DAY(DATE($X$2,INDEX(ROW($A$1:$A$11),MATCH($Q$2,{\"يناير\";\"فبراير\";\"مارس\";\"أبريل\";\"مايو\";\"يونيو\";\"يوليو\";\"أغسطس\";\"سبتمبر\";\"أكتوبر\";\"نوفمبر\";\"ديسمبر\"},0)),COLUMNS($E$1:N1))),\"\",DATE($X$2,INDEX(ROW($A$1:$A$11),MATCH($Q$2,{\"يناير\";\"فبراير\";\"مارس\";\"أبريل\";\"مايو\";\"يونيو\";\"يوليو\";\"أغسطس\";\"سبتمبر\";\"أكتوبر\";\"نوفمبر\";\"ديسمبر\"},0)),COLUMNS($E$1:N1)))","v":"2020-03-10"},{"$f":"IF(COLUMNS($E$1:O1)>DAY(DATE($X$2,INDEX(ROW($A$1:$A$11),MATCH($Q$2,{\"يناير\";\"فبراير\";\"مارس\";\"أبريل\";\"مايو\";\"يونيو\";\"يوليو\";\"أغسطس\";\"سبتمبر\";\"أكتوبر\";\"نوفمبر\";\"ديسمبر\"},0)),COLUMNS($E$1:O1))),\"\",DATE($X$2,INDEX(ROW($A$1:$A$11),MATCH($Q$2,{\"يناير\";\"فبراير\";\"مارس\";\"أبريل\";\"مايو\";\"يونيو\";\"يوليو\";\"أغسطس\";\"سبتمبر\";\"أكتوبر\";\"نوفمبر\";\"ديسمبر\"},0)),COLUMNS($E$1:O1)))","v":"2020-03-11"},{"$f":"IF(COLUMNS($E$1:P1)>DAY(DATE($X$2,INDEX(ROW($A$1:$A$11),MATCH($Q$2,{\"يناير\";\"فبراير\";\"مارس\";\"أبريل\";\"مايو\";\"يونيو\";\"يوليو\";\"أغسطس\";\"سبتمبر\";\"أكتوبر\";\"نوفمبر\";\"ديسمبر\"},0)),COLUMNS($E$1:P1))),\"\",DATE($X$2,INDEX(ROW($A$1:$A$11),MATCH($Q$2,{\"يناير\";\"فبراير\";\"مارس\";\"أبريل\";\"مايو\";\"يونيو\";\"يوليو\";\"أغسطس\";\"سبتمبر\";\"أكتوبر\";\"نوفمبر\";\"ديسمبر\"},0)),COLUMNS($E$1:P1)))","v":"2020-03-12"},{"$f":"IF(COLUMNS($E$1:Q1)>DAY(DATE($X$2,INDEX(ROW($A$1:$A$11),MATCH($Q$2,{\"يناير\";\"فبراير\";\"مارس\";\"أبريل\";\"مايو\";\"يونيو\";\"يوليو\";\"أغسطس\";\"سبتمبر\";\"أكتوبر\";\"نوفمبر\";\"ديسمبر\"},0)),COLUMNS($E$1:Q1))),\"\",DATE($X$2,INDEX(ROW($A$1:$A$11),MATCH($Q$2,{\"يناير\";\"فبراير\";\"مارس\";\"أبريل\";\"مايو\";\"يونيو\";\"يوليو\";\"أغسطس\";\"سبتمبر\";\"أكتوبر\";\"نوفمبر\";\"ديسمبر\"},0)),COLUMNS($E$1:Q1)))","v":"2020-03-13"},{"$f":"IF(COLUMNS($E$1:R1)>DAY(DATE($X$2,INDEX(ROW($A$1:$A$11),MATCH($Q$2,{\"يناير\";\"فبراير\";\"مارس\";\"أبريل\";\"مايو\";\"يونيو\";\"يوليو\";\"أغسطس\";\"سبتمبر\";\"أكتوبر\";\"نوفمبر\";\"ديسمبر\"},0)),COLUMNS($E$1:R1))),\"\",DATE($X$2,INDEX(ROW($A$1:$A$11),MATCH($Q$2,{\"يناير\";\"فبراير\";\"مارس\";\"أبريل\";\"مايو\";\"يونيو\";\"يوليو\";\"أغسطس\";\"سبتمبر\";\"أكتوبر\";\"نوفمبر\";\"ديسمبر\"},0)),COLUMNS($E$1:R1)))","v":"2020-03-14"},{"$f":"IF(COLUMNS($E$1:S1)>DAY(DATE($X$2,INDEX(ROW($A$1:$A$11),MATCH($Q$2,{\"يناير\";\"فبراير\";\"مارس\";\"أبريل\";\"مايو\";\"يونيو\";\"يوليو\";\"أغسطس\";\"سبتمبر\";\"أكتوبر\";\"نوفمبر\";\"ديسمبر\"},0)),COLUMNS($E$1:S1))),\"\",DATE($X$2,INDEX(ROW($A$1:$A$11),MATCH($Q$2,{\"يناير\";\"فبراير\";\"مارس\";\"أبريل\";\"مايو\";\"يونيو\";\"يوليو\";\"أغسطس\";\"سبتمبر\";\"أكتوبر\";\"نوفمبر\";\"ديسمبر\"},0)),COLUMNS($E$1:S1)))","v":"2020-03-15"},{"$f":"IF(COLUMNS($E$1:T1)>DAY(DATE($X$2,INDEX(ROW($A$1:$A$11),MATCH($Q$2,{\"يناير\";\"فبراير\";\"مارس\";\"أبريل\";\"مايو\";\"يونيو\";\"يوليو\";\"أغسطس\";\"سبتمبر\";\"أكتوبر\";\"نوفمبر\";\"ديسمبر\"},0)),COLUMNS($E$1:T1))),\"\",DATE($X$2,INDEX(ROW($A$1:$A$11),MATCH($Q$2,{\"يناير\";\"فبراير\";\"مارس\";\"أبريل\";\"مايو\";\"يونيو\";\"يوليو\";\"أغسطس\";\"سبتمبر\";\"أكتوبر\";\"نوفمبر\";\"ديسمبر\"},0)),COLUMNS($E$1:T1)))","v":"2020-03-16"},{"$f":"IF(COLUMNS($E$1:U1)>DAY(DATE($X$2,INDEX(ROW($A$1:$A$11),MATCH($Q$2,{\"يناير\";\"فبراير\";\"مارس\";\"أبريل\";\"مايو\";\"يونيو\";\"يوليو\";\"أغسطس\";\"سبتمبر\";\"أكتوبر\";\"نوفمبر\";\"ديسمبر\"},0)),COLUMNS($E$1:U1))),\"\",DATE($X$2,INDEX(ROW($A$1:$A$11),MATCH($Q$2,{\"يناير\";\"فبراير\";\"مارس\";\"أبريل\";\"مايو\";\"يونيو\";\"يوليو\";\"أغسطس\";\"سبتمبر\";\"أكتوبر\";\"نوفمبر\";\"ديسمبر\"},0)),COLUMNS($E$1:U1)))","v":"2020-03-17"},{"$f":"IF(COLUMNS($E$1:V1)>DAY(DATE($X$2,INDEX(ROW($A$1:$A$11),MATCH($Q$2,{\"يناير\";\"فبراير\";\"مارس\";\"أبريل\";\"مايو\";\"يونيو\";\"يوليو\";\"أغسطس\";\"سبتمبر\";\"أكتوبر\";\"نوفمبر\";\"ديسمبر\"},0)),COLUMNS($E$1:V1))),\"\",DATE($X$2,INDEX(ROW($A$1:$A$11),MATCH($Q$2,{\"يناير\";\"فبراير\";\"مارس\";\"أبريل\";\"مايو\";\"يونيو\";\"يوليو\";\"أغسطس\";\"سبتمبر\";\"أكتوبر\";\"نوفمبر\";\"ديسمبر\"},0)),COLUMNS($E$1:V1)))","v":"2020-03-18"},{"$f":"IF(COLUMNS($E$1:W1)>DAY(DATE($X$2,INDEX(ROW($A$1:$A$11),MATCH($Q$2,{\"يناير\";\"فبراير\";\"مارس\";\"أبريل\";\"مايو\";\"يونيو\";\"يوليو\";\"أغسطس\";\"سبتمبر\";\"أكتوبر\";\"نوفمبر\";\"ديسمبر\"},0)),COLUMNS($E$1:W1))),\"\",DATE($X$2,INDEX(ROW($A$1:$A$11),MATCH($Q$2,{\"يناير\";\"فبراير\";\"مارس\";\"أبريل\";\"مايو\";\"يونيو\";\"يوليو\";\"أغسطس\";\"سبتمبر\";\"أكتوبر\";\"نوفمبر\";\"ديسمبر\"},0)),COLUMNS($E$1:W1)))","v":"2020-03-19"},{"$f":"IF(COLUMNS($E$1:X1)>DAY(DATE($X$2,INDEX(ROW($A$1:$A$11),MATCH($Q$2,{\"يناير\";\"فبراير\";\"مارس\";\"أبريل\";\"مايو\";\"يونيو\";\"يوليو\";\"أغسطس\";\"سبتمبر\";\"أكتوبر\";\"نوفمبر\";\"ديسمبر\"},0)),COLUMNS($E$1:X1))),\"\",DATE($X$2,INDEX(ROW($A$1:$A$11),MATCH($Q$2,{\"يناير\";\"فبراير\";\"مارس\";\"أبريل\";\"مايو\";\"يونيو\";\"يوليو\";\"أغسطس\";\"سبتمبر\";\"أكتوبر\";\"نوفمبر\";\"ديسمبر\"},0)),COLUMNS($E$1:X1)))","v":"2020-03-20"},{"$f":"IF(COLUMNS($E$1:Y1)>DAY(DATE($X$2,INDEX(ROW($A$1:$A$11),MATCH($Q$2,{\"يناير\";\"فبراير\";\"مارس\";\"أبريل\";\"مايو\";\"يونيو\";\"يوليو\";\"أغسطس\";\"سبتمبر\";\"أكتوبر\";\"نوفمبر\";\"ديسمبر\"},0)),COLUMNS($E$1:Y1))),\"\",DATE($X$2,INDEX(ROW($A$1:$A$11),MATCH($Q$2,{\"يناير\";\"فبراير\";\"مارس\";\"أبريل\";\"مايو\";\"يونيو\";\"يوليو\";\"أغسطس\";\"سبتمبر\";\"أكتوبر\";\"نوفمبر\";\"ديسمبر\"},0)),COLUMNS($E$1:Y1)))","v":"2020-03-21"},{"$f":"IF(COLUMNS($E$1:Z1)>DAY(DATE($X$2,INDEX(ROW($A$1:$A$11),MATCH($Q$2,{\"يناير\";\"فبراير\";\"مارس\";\"أبريل\";\"مايو\";\"يونيو\";\"يوليو\";\"أغسطس\";\"سبتمبر\";\"أكتوبر\";\"نوفمبر\";\"ديسمبر\"},0)),COLUMNS($E$1:Z1))),\"\",DATE($X$2,INDEX(ROW($A$1:$A$11),MATCH($Q$2,{\"يناير\";\"فبراير\";\"مارس\";\"أبريل\";\"مايو\";\"يونيو\";\"يوليو\";\"أغسطس\";\"سبتمبر\";\"أكتوبر\";\"نوفمبر\";\"ديسمبر\"},0)),COLUMNS($E$1:Z1)))","v":"2020-03-22"},{"$f":"IF(COLUMNS($E$1:AA1)>DAY(DATE($X$2,INDEX(ROW($A$1:$A$11),MATCH($Q$2,{\"يناير\";\"فبراير\";\"مارس\";\"أبريل\";\"مايو\";\"يونيو\";\"يوليو\";\"أغسطس\";\"سبتمبر\";\"أكتوبر\";\"نوفمبر\";\"ديسمبر\"},0)),COLUMNS($E$1:AA1))),\"\",DATE($X$2,INDEX(ROW($A$1:$A$11),MATCH($Q$2,{\"يناير\";\"فبراير\";\"مارس\";\"أبريل\";\"مايو\";\"يونيو\";\"يوليو\";\"أغسطس\";\"سبتمبر\";\"أكتوبر\";\"نوفمبر\";\"ديسمبر\"},0)),COLUMNS($E$1:AA1)))","v":"2020-03-23"},{"$f":"IF(COLUMNS($E$1:AB1)>DAY(DATE($X$2,INDEX(ROW($A$1:$A$11),MATCH($Q$2,{\"يناير\";\"فبراير\";\"مارس\";\"أبريل\";\"مايو\";\"يونيو\";\"يوليو\";\"أغسطس\";\"سبتمبر\";\"أكتوبر\";\"نوفمبر\";\"ديسمبر\"},0)),COLUMNS($E$1:AB1))),\"\",DATE($X$2,INDEX(ROW($A$1:$A$11),MATCH($Q$2,{\"يناير\";\"فبراير\";\"مارس\";\"أبريل\";\"مايو\";\"يونيو\";\"يوليو\";\"أغسطس\";\"سبتمبر\";\"أكتوبر\";\"نوفمبر\";\"ديسمبر\"},0)),COLUMNS($E$1:AB1)))","v":"2020-03-24"},{"$f":"IF(COLUMNS($E$1:AC1)>DAY(DATE($X$2,INDEX(ROW($A$1:$A$11),MATCH($Q$2,{\"يناير\";\"فبراير\";\"مارس\";\"أبريل\";\"مايو\";\"يونيو\";\"يوليو\";\"أغسطس\";\"سبتمبر\";\"أكتوبر\";\"نوفمبر\";\"ديسمبر\"},0)),COLUMNS($E$1:AC1))),\"\",DATE($X$2,INDEX(ROW($A$1:$A$11),MATCH($Q$2,{\"يناير\";\"فبراير\";\"مارس\";\"أبريل\";\"مايو\";\"يونيو\";\"يوليو\";\"أغسطس\";\"سبتمبر\";\"أكتوبر\";\"نوفمبر\";\"ديسمبر\"},0)),COLUMNS($E$1:AC1)))","v":"2020-03-25"},{"$f":"IF(COLUMNS($E$1:AD1)>DAY(DATE($X$2,INDEX(ROW($A$1:$A$11),MATCH($Q$2,{\"يناير\";\"فبراير\";\"مارس\";\"أبريل\";\"مايو\";\"يونيو\";\"يوليو\";\"أغسطس\";\"سبتمبر\";\"أكتوبر\";\"نوفمبر\";\"ديسمبر\"},0)),COLUMNS($E$1:AD1))),\"\",DATE($X$2,INDEX(ROW($A$1:$A$11),MATCH($Q$2,{\"يناير\";\"فبراير\";\"مارس\";\"أبريل\";\"مايو\";\"يونيو\";\"يوليو\";\"أغسطس\";\"سبتمبر\";\"أكتوبر\";\"نوفمبر\";\"ديسمبر\"},0)),COLUMNS($E$1:AD1)))","v":"2020-03-26"},{"$f":"IF(COLUMNS($E$1:AE1)>DAY(DATE($X$2,INDEX(ROW($A$1:$A$11),MATCH($Q$2,{\"يناير\";\"فبراير\";\"مارس\";\"أبريل\";\"مايو\";\"يونيو\";\"يوليو\";\"أغسطس\";\"سبتمبر\";\"أكتوبر\";\"نوفمبر\";\"ديسمبر\"},0)),COLUMNS($E$1:AE1))),\"\",DATE($X$2,INDEX(ROW($A$1:$A$11),MATCH($Q$2,{\"يناير\";\"فبراير\";\"مارس\";\"أبريل\";\"مايو\";\"يونيو\";\"يوليو\";\"أغسطس\";\"سبتمبر\";\"أكتوبر\";\"نوفمبر\";\"ديسمبر\"},0)),COLUMNS($E$1:AE1)))","v":"2020-03-27"},{"$f":"IF(COLUMNS($E$1:AF1)>DAY(DATE($X$2,INDEX(ROW($A$1:$A$11),MATCH($Q$2,{\"يناير\";\"فبراير\";\"مارس\";\"أبريل\";\"مايو\";\"يونيو\";\"يوليو\";\"أغسطس\";\"سبتمبر\";\"أكتوبر\";\"نوفمبر\";\"ديسمبر\"},0)),COLUMNS($E$1:AF1))),\"\",DATE($X$2,INDEX(ROW($A$1:$A$11),MATCH($Q$2,{\"يناير\";\"فبراير\";\"مارس\";\"أبريل\";\"مايو\";\"يونيو\";\"يوليو\";\"أغسطس\";\"سبتمبر\";\"أكتوبر\";\"نوفمبر\";\"ديسمبر\"},0)),COLUMNS($E$1:AF1)))","v":"2020-03-28"},{"$f":"IF(COLUMNS($E$1:AG1)>DAY(DATE($X$2,INDEX(ROW($A$1:$A$11),MATCH($Q$2,{\"يناير\";\"فبراير\";\"مارس\";\"أبريل\";\"مايو\";\"يونيو\";\"يوليو\";\"أغسطس\";\"سبتمبر\";\"أكتوبر\";\"نوفمبر\";\"ديسمبر\"},0)),COLUMNS($E$1:AG1))),\"\",DATE($X$2,INDEX(ROW($A$1:$A$11),MATCH($Q$2,{\"يناير\";\"فبراير\";\"مارس\";\"أبريل\";\"مايو\";\"يونيو\";\"يوليو\";\"أغسطس\";\"سبتمبر\";\"أكتوبر\";\"نوفمبر\";\"ديسمبر\"},0)),COLUMNS($E$1:AG1)))","v":"2020-03-29"},{"$f":"IF(COLUMNS($E$1:AH1)>DAY(DATE($X$2,INDEX(ROW($A$1:$A$11),MATCH($Q$2,{\"يناير\";\"فبراير\";\"مارس\";\"أبريل\";\"مايو\";\"يونيو\";\"يوليو\";\"أغسطس\";\"سبتمبر\";\"أكتوبر\";\"نوفمبر\";\"ديسمبر\"},0)),COLUMNS($E$1:AH1))),\"\",DATE($X$2,INDEX(ROW($A$1:$A$11),MATCH($Q$2,{\"يناير\";\"فبراير\";\"مارس\";\"أبريل\";\"مايو\";\"يونيو\";\"يوليو\";\"أغسطس\";\"سبتمبر\";\"أكتوبر\";\"نوفمبر\";\"ديسمبر\"},0)),COLUMNS($E$1:AH1)))","v":"2020-03-30"},{"$f":"IF(COLUMNS($E$1:AI1)>DAY(DATE($X$2,INDEX(ROW($A$1:$A$11),MATCH($Q$2,{\"يناير\";\"فبراير\";\"مارس\";\"أبريل\";\"مايو\";\"يونيو\";\"يوليو\";\"أغسطس\";\"سبتمبر\";\"أكتوبر\";\"نوفمبر\";\"ديسمبر\"},0)),COLUMNS($E$1:AI1))),\"\",DATE($X$2,INDEX(ROW($A$1:$A$11),MATCH($Q$2,{\"يناير\";\"فبراير\";\"مارس\";\"أبريل\";\"مايو\";\"يونيو\";\"يوليو\";\"أغسطس\";\"سبتمبر\";\"أكتوبر\";\"نوفمبر\";\"ديسمبر\"},0)),COLUMNS($E$1:AI1)))","v":"2020-03-31"}]
[null,1,"خيري",null,null,null,null,null,null,"غ","غ",null,null,null,null,null,null,null,null,null,"غ",null,null,null,null,null,null,"غ",null,null,null,null,null,null,null,null,{"$f":"Alsqr(F5:AJ5,\"غ\",\" -\",1,1)","v":" - - - "},{"$f":"IF(AK5=\"\",\"\",elaiam(AM5))","v":"أربعة أيام"},{"$f":"IF(AK5=\"\",\"\",COUNTIF(F5:AJ5,\"غ\"))","v":4},{"$f":"IF(AK5=\"\",\"\",$T$2)","v":3},{"$f":"IF(AK5=\"\",\"\",$X$2)","v":2020}]
[null,2,"خالد",null,null,"غ","غ",null,null,null,null,null,"غ","غ",null,null,null,null,null,null,null,"غ",null,null,null,null,null,null,"غ",null,null,null,null,null,null,null,{"$f":"Alsqr(F6:AJ6,\"غ\",\" -\",1,1)","v":" - - - - - "},{"$f":"IF(AK6=\"\",\"\",elaiam(AM6))","v":"ستة أيام"},6,3,2020]
[null,3,"محسن","`",null,null,null,"غ","غ",null,null,null,null,null,null,null,"غ",null,null,"غ",null,"غ",null,null,null,null,"غ",null,null,null,null,null,null,"غ",null,"غ"," - - - - - - - ",{"$f":"IF(AK7=\"\",\"\",elaiam(AM7))","v":"ثمانية أيام"},8,3,2020]
[null,4,"كمال",null,null,null,null,null,null,"غ","غ",null,null,null,null,null,null,null,null,null,"غ",null,null,null,null,null,null,"غ",null,null,null,null,null,null,null,null," - - - ",{"$f":"IF(AK8=\"\",\"\",elaiam(AM8))","v":"أربعة أيام"},4,3,2020]
[null,5,"هشام",null,null,"غ","غ",null,null,null,null,null,"غ","غ",null,null,null,null,null,null,null,"غ",null,null,null,null,null,null,"غ",null,null,null,null,null,null,null," - - - - - ",{"$f":"IF(AK9=\"\",\"\",elaiam(AM9))","v":"ستة أيام"},6,3,2020]
[null,6,"وليد",null,null,null,null,"غ","غ",null,null,null,null,null,null,null,"غ",null,null,"غ",null,"غ",null,null,null,null,"غ",null,null,null,null,null,null,"غ",null,"غ"," - - - - - - - ",{"$f":"IF(AK10=\"\",\"\",elaiam(AM10))","v":"ثمانية أيام"},8,3,2020]
[null,7,"حسام",null,null,null,null,null,null,"غ","غ",null,null,null,null,null,null,null,null,null,"غ",null,null,null,null,null,null,"غ",null,null,null,null,null,null,null,null," - - - ",{"$f":"IF(AK11=\"\",\"\",elaiam(AM11))","v":"أربعة أيام"},4,3,2020]
[null,8,"طارق",null,null,"غ","غ",null,null,null,null,null,"غ","غ",null,null,null,null,null,null,null,"غ",null,null,null,null,null,null,"غ",null,null,null,null,null,null,null," - - - - - ",{"$f":"IF(AK12=\"\",\"\",elaiam(AM12))","v":"ستة أيام"},6,3,2020]
[null,9,"بنور",null,null,null,null,"غ","غ",null,null,null,null,null,null,null,"غ",null,null,"غ",null,"غ",null,null,null,null,"غ",null,null,null,null,null,null,"غ",null,"غ"," - - - - - - - ",{"$f":"IF(AK13=\"\",\"\",elaiam(AM13))","v":"ثمانية أيام"},8,3,2020]
[null,null,null,null,null,null,null,null,null,null,null,null,null,null,null,null,null,null,null,null,null,null,null,null,null,null,null,null,null,null,null,null,null,null,null,null,"",{"$f":"IF(AK14=\"\",\"\",elaiam(AM14))","v":""},"","",""]
[null,null,null,null,null,null,null,null,null,null,null,null,null,null,null,null,null,null,null,null,null,null,null,null,null,null,null,null,null,null,null,null,null,null,null,null,"",{"$f":"IF(AK15=\"\",\"\",elaiam(AM15))","v":""},"","",""]
[null,null,null,null,null,null,null,null,null,null,null,null,null,null,null,null,null,null,null,null,null,null,null,null,null,null,null,null,null,null,null,null,null,null,null,null,"",{"$f":"IF(AK16=\"\",\"\",elaiam(AM16))","v":""},"","",""]
[null,null,null,null,null,null,null,null,null,null,null,null,null,null,null,null,null,null,null,null,null,null,null,null,null,null,null,null,null,null,null,null,null,null,null,null,"",{"$f":"IF(AK17=\"\",\"\",elaiam(AM17))","v":""},"","",""]
[null,null,null,null,null,null,null,null,null,null,null,null,null,null,null,null,null,null,null,null,null,null,null,null,null,null,null,null,null,null,null,null,null,null,null,null,"",{"$f":"IF(AK18=\"\",\"\",elaiam(AM18))","v":""},"","",""]
[null,null,null,null,null,null,null,null,null,null,null,null,null,null,null,null,null,null,null,null,null,null,null,null,null,null,null,null,null,null,null,null,null,null,null,null,"",{"$f":"IF(AK19=\"\",\"\",elaiam(AM19))","v":""},"","",""]
[null,null,null,null,null,null,null,null,null,null,null,null,null,null,null,null,null,null,null,null,null,null,null,null,null,null,null,null,null,null,null,null,null,null,null,null,"",{"$f":"IF(AK20=\"\",\"\",elaiam(AM20))","v":""},"","",""]
[null,null,null,null,null,null,null,null,null,null,null,null,null,null,null,null,null,null,null,null,null,null,null,null,null,null,null,null,null,null,null,null,null,null,null,null,"",{"$f":"IF(AK21=\"\",\"\",elaiam(AM21))","v":""},"","",""]
[null,null,null,null,null,null,null,null,null,null,null,null,null,null,null,null,null,null,null,null,null,null,null,null,null,null,null,null,null,null,null,null,null,null,null,null,"",{"$f":"IF(AK22=\"\",\"\",elaiam(AM22))","v":""},"","",""]
[null,null,null,null,null,null,null,null,null,null,null,null,null,null,null,null,null,null,null,null,null,null,null,null,null,null,null,null,null,null,null,null,null,null,null,null,"",{"$f":"IF(AK23=\"\",\"\",elaiam(AM23))","v":""},"","",""]
[null,null,null,null,null,null,null,null,null,null,null,null,null,null,null,null,null,null,null,null,null,null,null,null,null,null,null,null,null,null,null,null,null,null,null,null,"",{"$f":"IF(AK24=\"\",\"\",elaiam(AM24))","v":""},"","",""]
[null,null,null,null,null,null,null,null,null,null,null,null,null,null,null,null,null,null,null,null,null,null,null,null,null,null,null,null,null,null,null,null,null,null,null,null,"",{"$f":"IF(AK25=\"\",\"\",elaiam(AM25))","v":""},"","",""]
[null,null,null,null,null,null,null,null,null,null,null,null,null,null,null,null,null,null,null,null,null,null,null,null,null,null,null,null,null,null,null,null,null,null,null,null,"",{"$f":"IF(AK26=\"\",\"\",elaiam(AM26))","v":""},"","",""]
[null,null,null,null,null,null,null,null,null,null,null,null,null,null,null,null,null,null,null,null,null,null,null,null,null,null,null,null,null,null,null,null,null,null,null,null,"",{"$f":"IF(AK27=\"\",\"\",elaiam(AM27))","v":""},"","",""]
[null,null,null,null,null,null,null,null,null,null,null,null,null,null,null,null,null,null,null,null,null,null,null,null,null,null,null,null,null,null,null,null,null,null,null,null,"",{"$f":"IF(AK28=\"\",\"\",elaiam(AM28))","v":""},"","",""]
[null,null,null,null,null,null,null,null,null,null,null,null,null,null,null,null,null,null,null,null,null,null,null,null,null,null,null,null,null,null,null,null,null,null,null,null,"",{"$f":"IF(AK29=\"\",\"\",elaiam(AM29))","v":""},"","",""]
[null,null,null,null,null,null,null,null,null,null,null,null,null,null,null,null,null,null,null,null,null,null,null,null,null,null,null,null,null,null,null,null,null,null,null,null,"",{"$f":"IF(AK30=\"\",\"\",elaiam(AM30))","v":""},"","",""]
[null,null,null,null,null,null,null,null,null,null,null,null,null,null,null,null,null,null,null,null,null,null,null,null,null,null,null,null,null,null,null,null,null,null,null,null,"",{"$f":"IF(AK31=\"\",\"\",elaiam(AM31))","v":""},"","",""]
[null,null,null,null,null,null,null,null,null,null,null,null,null,null,null,null,null,null,null,null,null,null,null,null,null,null,null,null,null,null,null,null,null,null,null,null,"",{"$f":"IF(AK32=\"\",\"\",elaiam(AM32))","v":""},"","",""]
[null,null,null,null,null,null,null,null,null,null,null,null,null,null,null,null,null,null,null,null,null,null,null,null,null,null,null,null,null,null,null,null,null,null,null,null,"",{"$f":"IF(AK33=\"\",\"\",elaiam(AM33))","v":""},"","",""]
[null,null,null,null,null,null,null,null,null,null,null,null,null,null,null,null,null,null,null,null,null,null,null,null,null,null,null,null,null,null,null,null,null,null,null,null,"",{"$f":"IF(AK34=\"\",\"\",elaiam(AM34))","v":""},"","",""]
[null,null,null,null,null,null,null,null,null,null,null,null,null,null,null,null,null,null,null,null,null,null,null,null,null,null,null,null,null,null,null,null,null,null,null,null,"",{"$f":"IF(AK35=\"\",\"\",elaiam(AM35))","v":""},"","",""]
[null,null,null,null,null,null,null,null,null,null,null,null,null,null,null,null,null,null,null,null,null,null,null,null,null,null,null,null,null,null,null,null,null,null,null,null,"",{"$f":"IF(AK36=\"\",\"\",elaiam(AM36))","v":""},"","",""]
[null,null,null,null,null,null,null,null,null,null,null,null,null,null,null,null,null,null,null,null,null,null,null,null,null,null,null,null,null,null,null,null,null,null,null,null,"",{"$f":"IF(AK37=\"\",\"\",elaiam(AM37))","v":""},"","",""]
[null,null,null,null,null,null,null,null,null,null,null,null,null,null,null,null,null,null,null,null,null,null,null,null,null,null,null,null,null,null,null,null,null,null,null,null,"",{"$f":"IF(AK38=\"\",\"\",elaiam(AM38))","v":""},"","",""]
[null,null,null,null,null,null,null,null,null,null,null,null,null,null,null,null,null,null,null,null,null,null,null,null,null,null,null,null,null,null,null,null,null,null,null,null,"",{"$f":"IF(AK39=\"\",\"\",elaiam(AM39))","v":""},"","",""]
[null,null,null,null,null,null,null,null,null,null,null,null,null,null,null,null,null,null,null,null,null,null,null,null,null,null,null,null,null,null,null,null,null,null,null,null,"",{"$f":"IF(AK40=\"\",\"\",elaiam(AM40))","v":""},"","",""]
[null,null,null,null,null,null,null,null,null,null,null,null,null,null,null,null,null,null,null,null,null,null,null,null,null,null,null,null,null,null,null,null,null,null,null,null,"",{"$f":"IF(AK41=\"\",\"\",elaiam(AM41))","v":""},"","",""]
[null,null,null,null,null,null,null,null,null,null,null,null,null,null,null,null,null,null,null,null,null,null,null,null,null,null,null,null,null,null,null,null,null,null,null,null,"",{"$f":"IF(AK42=\"\",\"\",elaiam(AM42))","v":""},"","",""]
[null,null,null,null,null,null,null,null,null,null,null,null,null,null,null,null,null,null,null,null,null,null,null,null,null,null,null,null,null,null,null,null,null,null,null,null,"",{"$f":"IF(AK43=\"\",\"\",elaiam(AM43))","v":""},"","",""]
[null,null,null,null,null,null,null,null,null,null,null,null,null,null,null,null,null,null,null,null,null,null,null,null,null,null,null,null,null,null,null,null,null,null,null,null,"",{"$f":"IF(AK44=\"\",\"\",elaiam(AM44))","v":""},"","",""]
[null,null,null,null,null,null,null,null,null,null,null,null,null,null,null,null,null,null,null,null,null,null,null,null,null,null,null,null,null,null,null,null,null,null,null,null,"",{"$f":"IF(AK45=\"\",\"\",elaiam(AM45))","v":""},"","",""]
[null,null,null,null,null,null,null,null,null,null,null,null,null,null,null,null,null,null,null,null,null,null,null,null,null,null,null,null,null,null,null,null,null,null,null,null,"",{"$f":"IF(AK46=\"\",\"\",elaiam(AM46))","v":""},"","",""]
[null,null,null,null,null,null,null,null,null,null,null,null,null,null,null,null,null,null,null,null,null,null,null,null,null,null,null,null,null,null,null,null,null,null,null,null,"",{"$f":"IF(AK47=\"\",\"\",elaiam(AM47))","v":""},"","",""]
[null,null,null,null,null,null,null,null,null,null,null,null,null,null,null,null,null,null,null,null,null,null,null,null,null,null,null,null,null,null,null,null,null,null,null,null,"",{"$f":"IF(AK48=\"\",\"\",elaiam(AM48))","v":""},"","",""]
[null,null,null,null,null,null,null,null,null,null,null,null,null,null,null,null,null,null,null,null,null,null,null,null,null,null,null,null,null,null,null,null,null,null,null,null,"",{"$f":"IF(AK49=\"\",\"\",elaiam(AM49))","v":""},"","",""]
[null,null,null,null,null,null,null,null,null,null,null,null,null,null,null,null,null,null,null,null,null,null,null,null,null,null,null,null,null,null,null,null,null,null,null,null,"",{"$f":"IF(AK50=\"\",\"\",elaiam(AM50))","v":""},"","",""]
[null,null,null,null,null,null,null,null,null,null,null,null,null,null,null,null,null,null,null,null,null,null,null,null,null,null,null,null,null,null,null,null,null,null,null,null,"",{"$f":"IF(AK51=\"\",\"\",elaiam(AM51))","v":""},"","",""]
[null,null,null,null,null,null,null,null,null,null,null,null,null,null,null,null,null,null,null,null,null,null,null,null,null,null,null,null,null,null,null,null,null,null,null,null,"",{"$f":"IF(AK52=\"\",\"\",elaiam(AM52))","v":""},"","",""]
[null,null,null,null,null,null,null,null,null,null,null,null,null,null,null,null,null,null,null,null,null,null,null,null,null,null,null,null,null,null,null,null,null,null,null,null,"",{"$f":"IF(AK53=\"\",\"\",elaiam(AM53))","v":""},"","",""]
[null,null,null,null,null,null,null,null,null,null,null,null,null,null,null,null,null,null,null,null,null,null,null,null,null,null,null,null,null,null,null,null,null,null,null,null,"",{"$f":"IF(AK54=\"\",\"\",elaiam(AM54))","v":""},"","",""]
[null,null,null,null,null,null,null,null,null,null,null,null,null,null,null,null,null,null,null,null,null,null,null,null,null,null,null,null,null,null,null,null,null,null,null,null,"",{"$f":"IF(AK55=\"\",\"\",elaiam(AM55))","v":""},"","",""]
[null,null,null,null,null,null,null,null,null,null,null,null,null,null,null,null,null,null,null,null,null,null,null,null,null,null,null,null,null,null,null,null,null,null,null,null,"",{"$f":"IF(AK56=\"\",\"\",elaiam(AM56))","v":""},"","",""]
[null,null,null,null,null,null,null,null,null,null,null,null,null,null,null,null,null,null,null,null,null,null,null,null,null,null,null,null,null,null,null,null,null,null,null,null,"",{"$f":"IF(AK57=\"\",\"\",elaiam(AM57))","v":""},"","",""]
[null,null,null,null,null,null,null,null,null,null,null,null,null,null,null,null,null,null,null,null,null,null,null,null,null,null,null,null,null,null,null,null,null,null,null,null,"",{"$f":"IF(AK58=\"\",\"\",elaiam(AM58))","v":""},"","",""]
[null,null,null,null,null,null,null,null,null,null,null,null,null,null,null,null,null,null,null,null,null,null,null,null,null,null,null,null,null,null,null,null,null,null,null,null,"",{"$f":"IF(AK59=\"\",\"\",elaiam(AM59))","v":""},"","",""]
[null,null,null,null,null,null,null,null,null,null,null,null,null,null,null,null,null,null,null,null,null,null,null,null,null,null,null,null,null,null,null,null,null,null,null,null,"",{"$f":"IF(AK60=\"\",\"\",elaiam(AM60))","v":""},"","",""]
[null,null,null,null,null,null,null,null,null,null,null,null,null,null,null,null,null,null,null,null,null,null,null,null,null,null,null,null,null,null,null,null,null,null,null,null,"",{"$f":"IF(AK61=\"\",\"\",elaiam(AM61))","v":""},"","",""]
[null,null,null,null,null,null,null,null,null,null,null,null,null,null,null,null,null,null,null,null,null,null,null,null,null,null,null,null,null,null,null,null,null,null,null,null,"",{"$f":"IF(AK62=\"\",\"\",elaiam(AM62))","v":""},"","",""]
[null,null,null,null,null,null,null,null,null,null,null,null,null,null,null,null,null,null,null,null,null,null,null,null,null,null,null,null,null,null,null,null,null,null,null,null,"",{"$f":"IF(AK63=\"\",\"\",elaiam(AM63))","v":""},"","",""]
[null,null,null,null,null,null,null,null,null,null,null,null,null,null,null,null,null,null,null,null,null,null,null,null,null,null,null,null,null,null,null,null,null,null,null,null,"",{"$f":"IF(AK64=\"\",\"\",elaiam(AM64))","v":""},"","",""]
[null,null,null,null,null,null,null,null,null,null,null,null,null,null,null,null,null,null,null,null,null,null,null,null,null,null,null,null,null,null,null,null,null,null,null,null,"",{"$f":"IF(AK65=\"\",\"\",elaiam(AM65))","v":""},"","",""]
[null,null,null,null,null,null,null,null,null,null,null,null,null,null,null,null,null,null,null,null,null,null,null,null,null,null,null,null,null,null,null,null,null,null,null,null,"",{"$f":"IF(AK66=\"\",\"\",elaiam(AM66))","v":""},"","",""]
[null,null,null,null,null,null,null,null,null,null,null,null,null,null,null,null,null,null,null,null,null,null,null,null,null,null,null,null,null,null,null,null,null,null,null,null,"",{"$f":"IF(AK67=\"\",\"\",elaiam(AM67))","v":""},"","",""]
[null,null,null,null,null,null,null,null,null,null,null,null,null,null,null,null,null,null,null,null,null,null,null,null,null,null,null,null,null,null,null,null,null,null,null,null,{"$f":"Alsqr(F68:AJ68,\"غ\",\" -\",1,1)","v":""},{"$f":"IF(AK68=\"\",\"\",elaiam(AM68))","v":""},{"$f":"IF(AK68=\"\",\"\",COUNTIF(F68:AJ68,\"غ\"))","v":""},{"$f":"IF(AK68=\"\",\"\",$T$2)","v":""},{"$f":"IF(AK68=\"\",\"\",$X$2)","v":""}]
[null,null,null,null,null,null,null,null,null,null,null,null,null,null,null,null,null,null,null,null,null,null,null,null,null,null,null,null,null,null,null,null,null,null,null,null,"",{"$f":"IF(AK69=\"\",\"\",elaiam(AM69))","v":""},"","",""]
[null,null,null,null,null,null,null,null,null,null,null,null,null,null,null,null,null,null,null,null,null,null,null,null,null,null,null,null,null,null,null,null,null,null,null,null,"",{"$f":"IF(AK70=\"\",\"\",elaiam(AM70))","v":""},"","",""]
[null,null,null,null,null,null,null,null,null,null,null,null,null,null,null,null,null,null,null,null,null,null,null,null,null,null,null,null,null,null,null,null,null,null,null,null,"",{"$f":"IF(AK71=\"\",\"\",elaiam(AM71))","v":""},"","",""]
[null,null,null,null,null,null,null,null,null,null,null,null,null,null,null,null,null,null,null,null,null,null,null,null,null,null,null,null,null,null,null,null,null,null,null,null,"",{"$f":"IF(AK72=\"\",\"\",elaiam(AM72))","v":""},"","",""]
[null,null,null,null,null,null,null,null,null,null,null,null,null,null,null,null,null,null,null,null,null,null,null,null,null,null,null,null,null,null,null,null,null,null,null,null,"",{"$f":"IF(AK73=\"\",\"\",elaiam(AM73))","v":""},"","",""]
[null,null,null,null,null,null,null,null,null,null,null,null,null,null,null,null,null,null,null,null,null,null,null,null,null,null,null,null,null,null,null,null,null,null,null,null,"",{"$f":"IF(AK74=\"\",\"\",elaiam(AM74))","v":""},"","",""]
[null,null,null,null,null,null,null,null,null,null,null,null,null,null,null,null,null,null,null,null,null,null,null,null,null,null,null,null,null,null,null,null,null,null,null,null,"",{"$f":"IF(AK75=\"\",\"\",elaiam(AM75))","v":""},"","",""]
[null,null,null,null,null,null,null,null,null,null,null,null,null,null,null,null,null,null,null,null,null,null,null,null,null,null,null,null,null,null,null,null,null,null,null,null,"",{"$f":"IF(AK76=\"\",\"\",elaiam(AM76))","v":""},"","",""]
[null,null,null,null,null,null,null,null,null,null,null,null,null,null,null,null,null,null,null,null,null,null,null,null,null,null,null,null,null,null,null,null,null,null,null,null,"",{"$f":"IF(AK77=\"\",\"\",elaiam(AM77))","v":""},"","",""]
[null,null,null,null,null,null,null,null,null,null,null,null,null,null,null,null,null,null,null,null,null,null,null,null,null,null,null,null,null,null,null,null,null,null,null,null,"",{"$f":"IF(AK78=\"\",\"\",elaiam(AM78))","v":""},"","",""]
[null,null,null,null,null,null,null,null,null,null,null,null,null,null,null,null,null,null,null,null,null,null,null,null,null,null,null,null,null,null,null,null,null,null,null,null,"",{"$f":"IF(AK79=\"\",\"\",elaiam(AM79))","v":""},"","",""]
[null,null,null,null,null,null,null,null,null,null,null,null,null,null,null,null,null,null,null,null,null,null,null,null,null,null,null,null,null,null,null,null,null,null,null,null,"",{"$f":"IF(AK80=\"\",\"\",elaiam(AM80))","v":""},"","",""]
[null,null,null,null,null,null,null,null,null,null,null,null,null,null,null,null,null,null,null,null,null,null,null,null,null,null,null,null,null,null,null,null,null,null,null,null,"",{"$f":"IF(AK81=\"\",\"\",elaiam(AM81))","v":""},"","",""]
[null,null,null,null,null,null,null,null,null,null,null,null,null,null,null,null,null,null,null,null,null,null,null,null,null,null,null,null,null,null,null,null,null,null,null,null,"",{"$f":"IF(AK82=\"\",\"\",elaiam(AM82))","v":""},"","",""]
[null,null,null,null,null,null,null,null,null,null,null,null,null,null,null,null,null,null,null,null,null,null,null,null,null,null,null,null,null,null,null,null,null,null,null,null,"",{"$f":"IF(AK83=\"\",\"\",elaiam(AM83))","v":""},"","",""]
[null,null,null,null,null,null,null,null,null,null,null,null,null,null,null,null,null,null,null,null,null,null,null,null,null,null,null,null,null,null,null,null,null,null,null,null,"",{"$f":"IF(AK84=\"\",\"\",elaiam(AM84))","v":""},"","",""]
[null,null,null,null,null,null,null,null,null,null,null,null,null,null,null,null,null,null,null,null,null,null,null,null,null,null,null,null,null,null,null,null,null,null,null,null,"",{"$f":"IF(AK85=\"\",\"\",elaiam(AM85))","v":""},"","",""]
[null,null,null,null,null,null,null,null,null,null,null,null,null,null,null,null,null,null,null,null,null,null,null,null,null,null,null,null,null,null,null,null,null,null,null,null,"",{"$f":"IF(AK86=\"\",\"\",elaiam(AM86))","v":""},"","",""]
[null,null,null,null,null,null,null,null,null,null,null,null,null,null,null,null,null,null,null,null,null,null,null,null,null,null,null,null,null,null,null,null,null,null,null,null,"",{"$f":"IF(AK87=\"\",\"\",elaiam(AM87))","v":""},"","",""]
[null,null,null,null,null,null,null,null,null,null,null,null,null,null,null,null,null,null,null,null,null,null,null,null,null,null,null,null,null,null,null,null,null,null,null,null,"",{"$f":"IF(AK88=\"\",\"\",elaiam(AM88))","v":""},"","",""]
[null,null,null,null,null,null,null,null,null,null,null,null,null,null,null,null,null,null,null,null,null,null,null,null,null,null,null,null,null,null,null,null,null,null,null,null,"",{"$f":"IF(AK89=\"\",\"\",elaiam(AM89))","v":""},"","",""]
[null,null,null,null,null,null,null,null,null,null,null,null,null,null,null,null,null,null,null,null,null,null,null,null,null,null,null,null,null,null,null,null,null,null,null,null,"",{"$f":"IF(AK90=\"\",\"\",elaiam(AM90))","v":""},"","",""]
[null,null,null,null,null,null,null,null,null,null,null,null,null,null,null,null,null,null,null,null,null,null,null,null,null,null,null,null,null,null,null,null,null,null,null,null,"",{"$f":"IF(AK91=\"\",\"\",elaiam(AM91))","v":""},"","",""]
[null,null,null,null,null,null,null,null,null,null,null,null,null,null,null,null,null,null,null,null,null,null,null,null,null,null,null,null,null,null,null,null,null,null,null,null,"",{"$f":"IF(AK92=\"\",\"\",elaiam(AM92))","v":""},"","",""]
[null,null,null,null,null,null,null,null,null,null,null,null,null,null,null,null,null,null,null,null,null,null,null,null,null,null,null,null,null,null,null,null,null,null,null,null,"",{"$f":"IF(AK93=\"\",\"\",elaiam(AM93))","v":""},"","",""]
[null,null,null,null,null,null,null,null,null,null,null,null,null,null,null,null,null,null,null,null,null,null,null,null,null,null,null,null,null,null,null,null,null,null,null,null,"",{"$f":"IF(AK94=\"\",\"\",elaiam(AM94))","v":""},"","",""]
[null,null,null,null,null,null,null,null,null,null,null,null,null,null,null,null,null,null,null,null,null,null,null,null,null,null,null,null,null,null,null,null,null,null,null,null,"",{"$f":"IF(AK95=\"\",\"\",elaiam(AM95))","v":""},"","",""]
[null,null,null,null,null,null,null,null,null,null,null,null,null,null,null,null,null,null,null,null,null,null,null,null,null,null,null,null,null,null,null,null,null,null,null,null,"",{"$f":"IF(AK96=\"\",\"\",elaiam(AM96))","v":""},"","",""]
[null,null,null,null,null,null,null,null,null,null,null,null,null,null,null,null,null,null,null,null,null,null,null,null,null,null,null,null,null,null,null,null,null,null,null,null,"",{"$f":"IF(AK97=\"\",\"\",elaiam(AM97))","v":""},"","",""]
[null,null,null,null,null,null,null,null,null,null,null,null,null,null,null,null,null,null,null,null,null,null,null,null,null,null,null,null,null,null,null,null,null,null,null,null,"",{"$f":"IF(AK98=\"\",\"\",elaiam(AM98))","v":""},"","",""]
[null,null,null,null,null,null,null,null,null,null,null,null,null,null,null,null,null,null,null,null,null,null,null,null,null,null,null,null,null,null,null,null,null,null,null,null,"",{"$f":"IF(AK99=\"\",\"\",elaiam(AM99))","v":""},"","",""]
[null,null,null,null,null,null,null,null,null,null,null,null,null,null,null,null,null,null,null,null,null,null,null,null,null,null,null,null,null,null,null,null,null,null,null,null,"",{"$f":"IF(AK100=\"\",\"\",elaiam(AM100))","v":""},"","",""]
[null,null,null,null,null,null,null,null,null,null,null,null,null,null,null,null,null,null,null,null,null,null,null,null,null,null,null,null,null,null,null,null,null,null,null,null,"",{"$f":"IF(AK101=\"\",\"\",elaiam(AM101))","v":""},"","",""]
[null,null,null,null,null,null,null,null,null,null,null,null,null,null,null,null,null,null,null,null,null,null,null,null,null,null,null,null,null,null,null,null,null,null,null,null,"",{"$f":"IF(AK102=\"\",\"\",elaiam(AM102))","v":""},"","",""]
[null,null,null,null,null,null,null,null,null,null,null,null,null,null,null,null,null,null,null,null,null,null,null,null,null,null,null,null,null,null,null,null,null,null,null,null,"",{"$f":"IF(AK103=\"\",\"\",elaiam(AM103))","v":""},"","",""]
[null,null,null,null,null,null,null,null,null,null,null,null,null,null,null,null,null,null,null,null,null,null,null,null,null,null,null,null,null,null,null,null,null,null,null,null,"",{"$f":"IF(AK104=\"\",\"\",elaiam(AM104))","v":""},"","",""]
[null,null,null,null,null,null,null,null,null,null,null,null,null,null,null,null,null,null,null,null,null,null,null,null,null,null,null,null,null,null,null,null,null,null,null,null,"",{"$f":"IF(AK105=\"\",\"\",elaiam(AM105))","v":""},"","",""]
[null,null,null,null,null,null,null,null,null,null,null,null,null,null,null,null,null,null,null,null,null,null,null,null,null,null,null,null,null,null,null,null,null,null,null,null,"",{"$f":"IF(AK106=\"\",\"\",elaiam(AM106))","v":""},"","",""]
[null,null,null,null,null,null,null,null,null,null,null,null,null,null,null,null,null,null,null,null,null,null,null,null,null,null,null,null,null,null,null,null,null,null,null,null,"",{"$f":"IF(AK107=\"\",\"\",elaiam(AM107))","v":""},"","",""]
[null,null,null,null,null,null,null,null,null,null,null,null,null,null,null,null,null,null,null,null,null,null,null,null,null,null,null,null,null,null,null,null,null,null,null,null,"",{"$f":"IF(AK108=\"\",\"\",elaiam(AM108))","v":""},"","",""]
[null,null,null,null,null,null,null,null,null,null,null,null,null,null,null,null,null,null,null,null,null,null,null,null,null,null,null,null,null,null,null,null,null,null,null,null,"",{"$f":"IF(AK109=\"\",\"\",elaiam(AM109))","v":""},"","",""]
[null,null,null,null,null,null,null,null,null,null,null,null,null,null,null,null,null,null,null,null,null,null,null,null,null,null,null,null,null,null,null,null,null,null,null,null,"",{"$f":"IF(AK110=\"\",\"\",elaiam(AM110))","v":""},"","",""]
[null,null,null,null,null,null,null,null,null,null,null,null,null,null,null,null,null,null,null,null,null,null,null,null,null,null,null,null,null,null,null,null,null,null,null,null,"",{"$f":"IF(AK111=\"\",\"\",elaiam(AM111))","v":""},"","",""]
[null,null,null,null,null,null,null,null,null,null,null,null,null,null,null,null,null,null,null,null,null,null,null,null,null,null,null,null,null,null,null,null,null,null,null,null,"",{"$f":"IF(AK112=\"\",\"\",elaiam(AM112))","v":""},"","",""]
[null,null,null,null,null,null,null,null,null,null,null,null,null,null,null,null,null,null,null,null,null,null,null,null,null,null,null,null,null,null,null,null,null,null,null,null,"",{"$f":"IF(AK113=\"\",\"\",elaiam(AM113))","v":""},"","",""]
[null,null,null,null,null,null,null,null,null,null,null,null,null,null,null,null,null,null,null,null,null,null,null,null,null,null,null,null,null,null,null,null,null,null,null,null,"",{"$f":"IF(AK114=\"\",\"\",elaiam(AM114))","v":""},"","",""]
[null,null,null,null,null,null,null,null,null,null,null,null,null,null,null,null,null,null,null,null,null,null,null,null,null,null,null,null,null,null,null,null,null,null,null,null,"",{"$f":"IF(AK115=\"\",\"\",elaiam(AM115))","v":""},"","",""]
[null,null,null,null,null,null,null,null,null,null,null,null,null,null,null,null,null,null,null,null,null,null,null,null,null,null,null,null,null,null,null,null,null,null,null,null,"",{"$f":"IF(AK116=\"\",\"\",elaiam(AM116))","v":""},"","",""]
[null,null,null,null,null,null,null,null,null,null,null,null,null,null,null,null,null,null,null,null,null,null,null,null,null,null,null,null,null,null,null,null,null,null,null,null,"",{"$f":"IF(AK117=\"\",\"\",elaiam(AM117))","v":""},"","",""]
[null,null,null,null,null,null,null,null,null,null,null,null,null,null,null,null,null,null,null,null,null,null,null,null,null,null,null,null,null,null,null,null,null,null,null,null,"",{"$f":"IF(AK118=\"\",\"\",elaiam(AM118))","v":""},"","",""]
[null,null,null,null,null,null,null,null,null,null,null,null,null,null,null,null,null,null,null,null,null,null,null,null,null,null,null,null,null,null,null,null,null,null,null,null,"",{"$f":"IF(AK119=\"\",\"\",elaiam(AM119))","v":""},"","",""]
[null,null,null,null,null,null,null,null,null,null,null,null,null,null,null,null,null,null,null,null,null,null,null,null,null,null,null,null,null,null,null,null,null,null,null,null,"",{"$f":"IF(AK120=\"\",\"\",elaiam(AM120))","v":""},"","",""]
[null,null,null,null,null,null,null,null,null,null,null,null,null,null,null,null,null,null,null,null,null,null,null,null,null,null,null,null,null,null,null,null,null,null,null,null,"",{"$f":"IF(AK121=\"\",\"\",elaiam(AM121))","v":""},"","",""]
[null,null,null,null,null,null,null,null,null,null,null,null,null,null,null,null,null,null,null,null,null,null,null,null,null,null,null,null,null,null,null,null,null,null,null,null,"",{"$f":"IF(AK122=\"\",\"\",elaiam(AM122))","v":""},"","",""]
[null,null,null,null,null,null,null,null,null,null,null,null,null,null,null,null,null,null,null,null,null,null,null,null,null,null,null,null,null,null,null,null,null,null,null,null,"",{"$f":"IF(AK123=\"\",\"\",elaiam(AM123))","v":""},"","",""]
[null,null,null,null,null,null,null,null,null,null,null,null,null,null,null,null,null,null,null,null,null,null,null,null,null,null,null,null,null,null,null,null,null,null,null,null,"",{"$f":"IF(AK124=\"\",\"\",elaiam(AM124))","v":""},"","",""]
[null,null,null,null,null,null,null,null,null,null,null,null,null,null,null,null,null,null,null,null,null,null,null,null,null,null,null,null,null,null,null,null,null,null,null,null,"",{"$f":"IF(AK125=\"\",\"\",elaiam(AM125))","v":""},"","",""]
[null,null,null,null,null,null,null,null,null,null,null,null,null,null,null,null,null,null,null,null,null,null,null,null,null,null,null,null,null,null,null,null,null,null,null,null,"",{"$f":"IF(AK126=\"\",\"\",elaiam(AM126))","v":""},"","",""]
[null,null,null,null,null,null,null,null,null,null,null,null,null,null,null,null,null,null,null,null,null,null,null,null,null,null,null,null,null,null,null,null,null,null,null,null,"",{"$f":"IF(AK127=\"\",\"\",elaiam(AM127))","v":""},"","",""]
[null,null,null,null,null,null,null,null,null,null,null,null,null,null,null,null,null,null,null,null,null,null,null,null,null,null,null,null,null,null,null,null,null,null,null,null,"",{"$f":"IF(AK128=\"\",\"\",elaiam(AM128))","v":""},"","",""]
[null,null,null,null,null,null,null,null,null,null,null,null,null,null,null,null,null,null,null,null,null,null,null,null,null,null,null,null,null,null,null,null,null,null,null,null,"",{"$f":"IF(AK129=\"\",\"\",elaiam(AM129))","v":""},"","",""]
[null,null,null,null,null,null,null,null,null,null,null,null,null,null,null,null,null,null,null,null,null,null,null,null,null,null,null,null,null,null,null,null,null,null,null,null,"",{"$f":"IF(AK130=\"\",\"\",elaiam(AM130))","v":""},"","",""]
[null,null,null,null,null,null,null,null,null,null,null,null,null,null,null,null,null,null,null,null,null,null,null,null,null,null,null,null,null,null,null,null,null,null,null,null,"",{"$f":"IF(AK131=\"\",\"\",elaiam(AM131))","v":""},"","",""]
[null,null,null,null,null,null,null,null,null,null,null,null,null,null,null,null,null,null,null,null,null,null,null,null,null,null,null,null,null,null,null,null,null,null,null,null,{"$f":"Alsqr(F132:AJ132,\"غ\",\" -\",1,1)","v":""},{"$f":"IF(AK132=\"\",\"\",elaiam(AM132))","v":""},{"$f":"IF(AK132=\"\",\"\",COUNTIF(F132:AJ132,\"غ\"))","v":""},{"$f":"IF(AK132=\"\",\"\",$T$2)","v":""},{"$f":"IF(AK132=\"\",\"\",$X$2)","v":""}]
[null,null,null,null,null,null,null,null,null,null,null,null,null,null,null,null,null,null,null,null,null,null,null,null,null,null,null,null,null,null,null,null,null,null,null,null,"",{"$f":"IF(AK133=\"\",\"\",elaiam(AM133))","v":""},"","",""]
[null,null,null,null,null,null,null,null,null,null,null,null,null,null,null,null,null,null,null,null,null,null,null,null,null,null,null,null,null,null,null,null,null,null,null,null,"",{"$f":"IF(AK134=\"\",\"\",elaiam(AM134))","v":""},"","",""]
[null,null,null,null,null,null,null,null,null,null,null,null,null,null,null,null,null,null,null,null,null,null,null,null,null,null,null,null,null,null,null,null,null,null,null,null,"",{"$f":"IF(AK135=\"\",\"\",elaiam(AM135))","v":""},"","",""]
[null,null,null,null,null,null,null,null,null,null,null,null,null,null,null,null,null,null,null,null,null,null,null,null,null,null,null,null,null,null,null,null,null,null,null,null,"",{"$f":"IF(AK136=\"\",\"\",elaiam(AM136))","v":""},"","",""]
[null,null,null,null,null,null,null,null,null,null,null,null,null,null,null,null,null,null,null,null,null,null,null,null,null,null,null,null,null,null,null,null,null,null,null,null,"",{"$f":"IF(AK137=\"\",\"\",elaiam(AM137))","v":""},"","",""]
[null,null,null,null,null,null,null,null,null,null,null,null,null,null,null,null,null,null,null,null,null,null,null,null,null,null,null,null,null,null,null,null,null,null,null,null,"",{"$f":"IF(AK138=\"\",\"\",elaiam(AM138))","v":""},"","",""]
[null,null,null,null,null,null,null,null,null,null,null,null,null,null,null,null,null,null,null,null,null,null,null,null,null,null,null,null,null,null,null,null,null,null,null,null,"",{"$f":"IF(AK139=\"\",\"\",elaiam(AM139))","v":""},"","",""]
[null,null,null,null,null,null,null,null,null,null,null,null,null,null,null,null,null,null,null,null,null,null,null,null,null,null,null,null,null,null,null,null,null,null,null,null,"",{"$f":"IF(AK140=\"\",\"\",elaiam(AM140))","v":""},"","",""]
[null,null,null,null,null,null,null,null,null,null,null,null,null,null,null,null,null,null,null,null,null,null,null,null,null,null,null,null,null,null,null,null,null,null,null,null,"",{"$f":"IF(AK141=\"\",\"\",elaiam(AM141))","v":""},"","",""]
[null,null,null,null,null,null,null,null,null,null,null,null,null,null,null,null,null,null,null,null,null,null,null,null,null,null,null,null,null,null,null,null,null,null,null,null,"",{"$f":"IF(AK142=\"\",\"\",elaiam(AM142))","v":""},"","",""]
[null,null,null,null,null,null,null,null,null,null,null,null,null,null,null,null,null,null,null,null,null,null,null,null,null,null,null,null,null,null,null,null,null,null,null,null,"",{"$f":"IF(AK143=\"\",\"\",elaiam(AM143))","v":""},"","",""]
[null,null,null,null,null,null,null,null,null,null,null,null,null,null,null,null,null,null,null,null,null,null,null,null,null,null,null,null,null,null,null,null,null,null,null,null,"",{"$f":"IF(AK144=\"\",\"\",elaiam(AM144))","v":""},"","",""]
[null,null,null,null,null,null,null,null,null,null,null,null,null,null,null,null,null,null,null,null,null,null,null,null,null,null,null,null,null,null,null,null,null,null,null,null,"",{"$f":"IF(AK145=\"\",\"\",elaiam(AM145))","v":""},"","",""]
[null,null,null,null,null,null,null,null,null,null,null,null,null,null,null,null,null,null,null,null,null,null,null,null,null,null,null,null,null,null,null,null,null,null,null,null,"",{"$f":"IF(AK146=\"\",\"\",elaiam(AM146))","v":""},"","",""]
[null,null,null,null,null,null,null,null,null,null,null,null,null,null,null,null,null,null,null,null,null,null,null,null,null,null,null,null,null,null,null,null,null,null,null,null,"",{"$f":"IF(AK147=\"\",\"\",elaiam(AM147))","v":""},"","",""]
[null,null,null,null,null,null,null,null,null,null,null,null,null,null,null,null,null,null,null,null,null,null,null,null,null,null,null,null,null,null,null,null,null,null,null,null,"",{"$f":"IF(AK148=\"\",\"\",elaiam(AM148))","v":""},"","",""]
[null,null,null,null,null,null,null,null,null,null,null,null,null,null,null,null,null,null,null,null,null,null,null,null,null,null,null,null,null,null,null,null,null,null,null,null,"",{"$f":"IF(AK149=\"\",\"\",elaiam(AM149))","v":""},"","",""]
[null,null,null,null,null,null,null,null,null,null,null,null,null,null,null,null,null,null,null,null,null,null,null,null,null,null,null,null,null,null,null,null,null,null,null,null,"",{"$f":"IF(AK150=\"\",\"\",elaiam(AM150))","v":""},"","",""]
[null,null,null,null,null,null,null,null,null,null,null,null,null,null,null,null,null,null,null,null,null,null,null,null,null,null,null,null,null,null,null,null,null,null,null,null,"",{"$f":"IF(AK151=\"\",\"\",elaiam(AM151))","v":""},"","",""]
[null,null,null,null,null,null,null,null,null,null,null,null,null,null,null,null,null,null,null,null,null,null,null,null,null,null,null,null,null,null,null,null,null,null,null,null,"",{"$f":"IF(AK152=\"\",\"\",elaiam(AM152))","v":""},"","",""]
[null,null,null,null,null,null,null,null,null,null,null,null,null,null,null,null,null,null,null,null,null,null,null,null,null,null,null,null,null,null,null,null,null,null,null,null,"",{"$f":"IF(AK153=\"\",\"\",elaiam(AM153))","v":""},"","",""]
[null,null,null,null,null,null,null,null,null,null,null,null,null,null,null,null,null,null,null,null,null,null,null,null,null,null,null,null,null,null,null,null,null,null,null,null,"",{"$f":"IF(AK154=\"\",\"\",elaiam(AM154))","v":""},"","",""]
[null,null,null,null,null,null,null,null,null,null,null,null,null,null,null,null,null,null,null,null,null,null,null,null,null,null,null,null,null,null,null,null,null,null,null,null,"",{"$f":"IF(AK155=\"\",\"\",elaiam(AM155))","v":""},"","",""]
[null,null,null,null,null,null,null,null,null,null,null,null,null,null,null,null,null,null,null,null,null,null,null,null,null,null,null,null,null,null,null,null,null,null,null,null,"",{"$f":"IF(AK156=\"\",\"\",elaiam(AM156))","v":""},"","",""]
[null,null,null,null,null,null,null,null,null,null,null,null,null,null,null,null,null,null,null,null,null,null,null,null,null,null,null,null,null,null,null,null,null,null,null,null,"",{"$f":"IF(AK157=\"\",\"\",elaiam(AM157))","v":""},"","",""]
[null,null,null,null,null,null,null,null,null,null,null,null,null,null,null,null,null,null,null,null,null,null,null,null,null,null,null,null,null,null,null,null,null,null,null,null,"",{"$f":"IF(AK158=\"\",\"\",elaiam(AM158))","v":""},"","",""]
[null,null,null,null,null,null,null,null,null,null,null,null,null,null,null,null,null,null,null,null,null,null,null,null,null,null,null,null,null,null,null,null,null,null,null,null,"",{"$f":"IF(AK159=\"\",\"\",elaiam(AM159))","v":""},"","",""]
[null,null,null,null,null,null,null,null,null,null,null,null,null,null,null,null,null,null,null,null,null,null,null,null,null,null,null,null,null,null,null,null,null,null,null,null,"",{"$f":"IF(AK160=\"\",\"\",elaiam(AM160))","v":""},"","",""]
[null,null,null,null,null,null,null,null,null,null,null,null,null,null,null,null,null,null,null,null,null,null,null,null,null,null,null,null,null,null,null,null,null,null,null,null,"",{"$f":"IF(AK161=\"\",\"\",elaiam(AM161))","v":""},"","",""]
[null,null,null,null,null,null,null,null,null,null,null,null,null,null,null,null,null,null,null,null,null,null,null,null,null,null,null,null,null,null,null,null,null,null,null,null,"",{"$f":"IF(AK162=\"\",\"\",elaiam(AM162))","v":""},"","",""]
[null,null,null,null,null,null,null,null,null,null,null,null,null,null,null,null,null,null,null,null,null,null,null,null,null,null,null,null,null,null,null,null,null,null,null,null,"",{"$f":"IF(AK163=\"\",\"\",elaiam(AM163))","v":""},"","",""]
[null,null,null,null,null,null,null,null,null,null,null,null,null,null,null,null,null,null,null,null,null,null,null,null,null,null,null,null,null,null,null,null,null,null,null,null,"",{"$f":"IF(AK164=\"\",\"\",elaiam(AM164))","v":""},"","",""]
[null,null,null,null,null,null,null,null,null,null,null,null,null,null,null,null,null,null,null,null,null,null,null,null,null,null,null,null,null,null,null,null,null,null,null,null,"",{"$f":"IF(AK165=\"\",\"\",elaiam(AM165))","v":""},"","",""]
[null,null,null,null,null,null,null,null,null,null,null,null,null,null,null,null,null,null,null,null,null,null,null,null,null,null,null,null,null,null,null,null,null,null,null,null,"",{"$f":"IF(AK166=\"\",\"\",elaiam(AM166))","v":""},"","",""]
[null,null,null,null,null,null,null,null,null,null,null,null,null,null,null,null,null,null,null,null,null,null,null,null,null,null,null,null,null,null,null,null,null,null,null,null,"",{"$f":"IF(AK167=\"\",\"\",elaiam(AM167))","v":""},"","",""]
[null,null,null,null,null,null,null,null,null,null,null,null,null,null,null,null,null,null,null,null,null,null,null,null,null,null,null,null,null,null,null,null,null,null,null,null,"",{"$f":"IF(AK168=\"\",\"\",elaiam(AM168))","v":""},"","",""]
[null,null,null,null,null,null,null,null,null,null,null,null,null,null,null,null,null,null,null,null,null,null,null,null,null,null,null,null,null,null,null,null,null,null,null,null,"",{"$f":"IF(AK169=\"\",\"\",elaiam(AM169))","v":""},"","",""]
[null,null,null,null,null,null,null,null,null,null,null,null,null,null,null,null,null,null,null,null,null,null,null,null,null,null,null,null,null,null,null,null,null,null,null,null,"",{"$f":"IF(AK170=\"\",\"\",elaiam(AM170))","v":""},"","",""]
[null,null,null,null,null,null,null,null,null,null,null,null,null,null,null,null,null,null,null,null,null,null,null,null,null,null,null,null,null,null,null,null,null,null,null,null,"",{"$f":"IF(AK171=\"\",\"\",elaiam(AM171))","v":""},"","",""]
[null,null,null,null,null,null,null,null,null,null,null,null,null,null,null,null,null,null,null,null,null,null,null,null,null,null,null,null,null,null,null,null,null,null,null,null,"",{"$f":"IF(AK172=\"\",\"\",elaiam(AM172))","v":""},"","",""]
[null,null,null,null,null,null,null,null,null,null,null,null,null,null,null,null,null,null,null,null,null,null,null,null,null,null,null,null,null,null,null,null,null,null,null,null,"",{"$f":"IF(AK173=\"\",\"\",elaiam(AM173))","v":""},"","",""]
[null,null,null,null,null,null,null,null,null,null,null,null,null,null,null,null,null,null,null,null,null,null,null,null,null,null,null,null,null,null,null,null,null,null,null,null,"",{"$f":"IF(AK174=\"\",\"\",elaiam(AM174))","v":""},"","",""]
[null,null,null,null,null,null,null,null,null,null,null,null,null,null,null,null,null,null,null,null,null,null,null,null,null,null,null,null,null,null,null,null,null,null,null,null,"",{"$f":"IF(AK175=\"\",\"\",elaiam(AM175))","v":""},"","",""]
[null,null,null,null,null,null,null,null,null,null,null,null,null,null,null,null,null,null,null,null,null,null,null,null,null,null,null,null,null,null,null,null,null,null,null,null,"",{"$f":"IF(AK176=\"\",\"\",elaiam(AM176))","v":""},"","",""]
[null,null,null,null,null,null,null,null,null,null,null,null,null,null,null,null,null,null,null,null,null,null,null,null,null,null,null,null,null,null,null,null,null,null,null,null,"",{"$f":"IF(AK177=\"\",\"\",elaiam(AM177))","v":""},"","",""]
[null,null,null,null,null,null,null,null,null,null,null,null,null,null,null,null,null,null,null,null,null,null,null,null,null,null,null,null,null,null,null,null,null,null,null,null,"",{"$f":"IF(AK178=\"\",\"\",elaiam(AM178))","v":""},"","",""]
[null,null,null,null,null,null,null,null,null,null,null,null,null,null,null,null,null,null,null,null,null,null,null,null,null,null,null,null,null,null,null,null,null,null,null,null,"",{"$f":"IF(AK179=\"\",\"\",elaiam(AM179))","v":""},"","",""]
[null,null,null,null,null,null,null,null,null,null,null,null,null,null,null,null,null,null,null,null,null,null,null,null,null,null,null,null,null,null,null,null,null,null,null,null,"",{"$f":"IF(AK180=\"\",\"\",elaiam(AM180))","v":""},"","",""]
[null,null,null,null,null,null,null,null,null,null,null,null,null,null,null,null,null,null,null,null,null,null,null,null,null,null,null,null,null,null,null,null,null,null,null,null,"",{"$f":"IF(AK181=\"\",\"\",elaiam(AM181))","v":""},"","",""]
[null,null,null,null,null,null,null,null,null,null,null,null,null,null,null,null,null,null,null,null,null,null,null,null,null,null,null,null,null,null,null,null,null,null,null,null,"",{"$f":"IF(AK182=\"\",\"\",elaiam(AM182))","v":""},"","",""]
[null,null,null,null,null,null,null,null,null,null,null,null,null,null,null,null,null,null,null,null,null,null,null,null,null,null,null,null,null,null,null,null,null,null,null,null,"",{"$f":"IF(AK183=\"\",\"\",elaiam(AM183))","v":""},"","",""]
[null,null,null,null,null,null,null,null,null,null,null,null,null,null,null,null,null,null,null,null,null,null,null,null,null,null,null,null,null,null,null,null,null,null,null,null,"",{"$f":"IF(AK184=\"\",\"\",elaiam(AM184))","v":""},"","",""]
[null,null,null,null,null,null,null,null,null,null,null,null,null,null,null,null,null,null,null,null,null,null,null,null,null,null,null,null,null,null,null,null,null,null,null,null,"",{"$f":"IF(AK185=\"\",\"\",elaiam(AM185))","v":""},"","",""]
[null,null,null,null,null,null,null,null,null,null,null,null,null,null,null,null,null,null,null,null,null,null,null,null,null,null,null,null,null,null,null,null,null,null,null,null,"",{"$f":"IF(AK186=\"\",\"\",elaiam(AM186))","v":""},"","",""]
[null,null,null,null,null,null,null,null,null,null,null,null,null,null,null,null,null,null,null,null,null,null,null,null,null,null,null,null,null,null,null,null,null,null,null,null,"",{"$f":"IF(AK187=\"\",\"\",elaiam(AM187))","v":""},"","",""]
[null,null,null,null,null,null,null,null,null,null,null,null,null,null,null,null,null,null,null,null,null,null,null,null,null,null,null,null,null,null,null,null,null,null,null,null,"",{"$f":"IF(AK188=\"\",\"\",elaiam(AM188))","v":""},"","",""]
[null,null,null,null,null,null,null,null,null,null,null,null,null,null,null,null,null,null,null,null,null,null,null,null,null,null,null,null,null,null,null,null,null,null,null,null,"",{"$f":"IF(AK189=\"\",\"\",elaiam(AM189))","v":""},"","",""]
[null,null,null,null,null,null,null,null,null,null,null,null,null,null,null,null,null,null,null,null,null,null,null,null,null,null,null,null,null,null,null,null,null,null,null,null,"",{"$f":"IF(AK190=\"\",\"\",elaiam(AM190))","v":""},"","",""]
[null,null,null,null,null,null,null,null,null,null,null,null,null,null,null,null,null,null,null,null,null,null,null,null,null,null,null,null,null,null,null,null,null,null,null,null,"",{"$f":"IF(AK191=\"\",\"\",elaiam(AM191))","v":""},"","",""]
[null,null,null,null,null,null,null,null,null,null,null,null,null,null,null,null,null,null,null,null,null,null,null,null,null,null,null,null,null,null,null,null,null,null,null,null,"",{"$f":"IF(AK192=\"\",\"\",elaiam(AM192))","v":""},"","",""]
[null,null,null,null,null,null,null,null,null,null,null,null,null,null,null,null,null,null,null,null,null,null,null,null,null,null,null,null,null,null,null,null,null,null,null,null,"",{"$f":"IF(AK193=\"\",\"\",elaiam(AM193))","v":""},"","",""]
[null,null,null,null,null,null,null,null,null,null,null,null,null,null,null,null,null,null,null,null,null,null,null,null,null,null,null,null,null,null,null,null,null,null,null,null,"",{"$f":"IF(AK194=\"\",\"\",elaiam(AM194))","v":""},"","",""]
[null,null,null,null,null,null,null,null,null,null,null,null,null,null,null,null,null,null,null,null,null,null,null,null,null,null,null,null,null,null,null,null,null,null,null,null,"",{"$f":"IF(AK195=\"\",\"\",elaiam(AM195))","v":""},"","",""]
[null,null,null,null,null,null,null,null,null,null,null,null,null,null,null,null,null,null,null,null,null,null,null,null,null,null,null,null,null,null,null,null,null,null,null,null,{"$f":"Alsqr(F196:AJ196,\"غ\",\" -\",1,1)","v":""},{"$f":"IF(AK196=\"\",\"\",elaiam(AM196))","v":""},{"$f":"IF(AK196=\"\",\"\",COUNTIF(F196:AJ196,\"غ\"))","v":""},{"$f":"IF(AK196=\"\",\"\",$T$2)","v":""},{"$f":"IF(AK196=\"\",\"\",$X$2)","v":""}]
[null,null,null,null,null,null,null,null,null,null,null,null,null,null,null,null,null,null,null,null,null,null,null,null,null,null,null,null,null,null,null,null,null,null,null,null,"",{"$f":"IF(AK197=\"\",\"\",elaiam(AM197))","v":""},"","",""]
[null,null,null,null,null,null,null,null,null,null,null,null,null,null,null,null,null,null,null,null,null,null,null,null,null,null,null,null,null,null,null,null,null,null,null,null,"",{"$f":"IF(AK198=\"\",\"\",elaiam(AM198))","v":""},"","",""]
[null,null,null,null,null,null,null,null,null,null,null,null,null,null,null,null,null,null,null,null,null,null,null,null,null,null,null,null,null,null,null,null,null,null,null,null,"",{"$f":"IF(AK199=\"\",\"\",elaiam(AM199))","v":""},"","",""]
[null,null,null,null,null,null,null,null,null,null,null,null,null,null,null,null,null,null,null,null,null,null,null,null,null,null,null,null,null,null,null,null,null,null,null,null,"",{"$f":"IF(AK200=\"\",\"\",elaiam(AM200))","v":""},"","",""]
[null,null,null,null,null,null,null,null,null,null,null,null,null,null,null,null,null,null,null,null,null,null,null,null,null,null,null,null,null,null,null,null,null,null,null,null,"",{"$f":"IF(AK201=\"\",\"\",elaiam(AM201))","v":""},"","",""]
[null,null,null,null,null,null,null,null,null,null,null,null,null,null,null,null,null,null,null,null,null,null,null,null,null,null,null,null,null,null,null,null,null,null,null,null,"",{"$f":"IF(AK202=\"\",\"\",elaiam(AM202))","v":""},"","",""]
[null,null,null,null,null,null,null,null,null,null,null,null,null,null,null,null,null,null,null,null,null,null,null,null,null,null,null,null,null,null,null,null,null,null,null,null,"",{"$f":"IF(AK203=\"\",\"\",elaiam(AM203))","v":""},"","",""]
[null,null,null,null,null,null,null,null,null,null,null,null,null,null,null,null,null,null,null,null,null,null,null,null,null,null,null,null,null,null,null,null,null,null,null,null,"",{"$f":"IF(AK204=\"\",\"\",elaiam(AM204))","v":""},"","",""]
[null,null,null,null,null,null,null,null,null,null,null,null,null,null,null,null,null,null,null,null,null,null,null,null,null,null,null,null,null,null,null,null,null,null,null,null,"",{"$f":"IF(AK205=\"\",\"\",elaiam(AM205))","v":""},"","",""]

{"sheet":"arhkeab","index":1,"n_rows":4,"n_cols":8,"rows_kept":4,"cut":false,"hidden":false,"merged":[[0,1,2,7]]}
[null,"أرشيف الغياب"]
[]
[]
[null,"الرقم","الاسم","أيام الغايب","أيام الغياب بالحروف","عدد أيام الغياب","شهر الغياب","السنة"]